[Event "WYCC U14 Open 2019"]
[Site "Mumbai"]
[Date "2019.10.12"]
[Round "11.4"]
[White "Abinandhan R"]
[Black "Sreeshwan Maralakshikari"]
[Result "0-1"]
[ECO "B12"]
[WhiteElo "1830"]
[BlackElo "2449"]
[Annotator "ChessBase"]
[PlyCount "102"]
[EventDate "2019.10.02"]
[EventType "swiss"]
[EventCountry "IND"]
[SourceTitle "playchess.com"]
[Source "ChessBase"]
[SourceQuality "1"]
[TimeControl "40/5400+30:1800+30"]

1. e4 {[%emt 0:00:00]} c6 {[%emt 0:00:00]} 2. d4 {[%emt 0:00:00]} d5 {[%emt 0:00:00]} 3. e5 {[%emt 0:00:00]} Bf5 {[%emt 0:00:00]} 4. h4 {[%emt 0:00:00]} h6 {[%emt 0:00:12]} 5. g4 {[%emt 0:03:04]} Be4 {[%emt 0:00:05]} 6. f3 {[%emt 0:00:05]} Bh7 {[%emt 0:00:03]} 7. e6 {[%emt 0:00:40]} Qd6 {[%emt 0:00:05]} 8. exf7+ {[%emt 0:00:09]} Kxf7 {[%emt 0:00:02]} 9. Bd3 {[%emt 0:00:21]} e5 {[%emt 0:12:28]} 10. dxe5 {[%emt 0:14:12]} Qxe5+ {[%emt 0:02:04]} 11. Ne2 {[%emt 0:00:11]} Bxd3 {[%emt 0:09:29]} 12. Qxd3 {[%emt 0:01:52]} Nd7 {[%emt 0:00:14]} 13. f4 {[%emt 0:10:31]} Qe6 {[%emt 0:07:39]} 14. f5 {[%emt 0:02:58]} Qe5 {[%emt 0:06:02]} 15. Nbc3 {[%emt 0:06:36]} Re8 {[%emt 0:00:25]} 16. Qf3 {[%emt 0:06:00]} Bb4 {[%emt 0:03:04]} 17. Bd2 {[%emt 0:27:59]} Bxc3 {[%emt 0:00:08]} 18. Bxc3 {[%emt 0:00:18]} Qe4 {[%emt 0:00:03]} 19. Kf2 {[%emt 0:05:40]} Ngf6 {[%emt 0:00:07]} 20. Qxe4 {[%emt 0:01:47]} Rxe4 {[%emt 0:00:09]} 21. g5 {[%emt 0:00:22]} Ng4+ {[%emt 0:12:36]} 22. Kf3 {[%emt 0:00:49]} Nde5+ {[%emt 0:08:27]} 23. Bxe5 {[%emt 0:00:10]} Nxe5+ {[%emt 0:00:01]} 24. Kf2 {[%emt 0:00:17]} Ng4+ {[%emt 0:02:01]} 25. Kf3 {[%emt 0:00:44]} hxg5 {[%emt 0:01:33]} 26. hxg5 {[%emt 0:00:18]} Rh2 {[%emt 0:01:37]} 27. Rxh2 {[%emt 0:00:30]} Nxh2+ {[%emt 0:00:03]} 28. Kf2 {[%emt 0:00:03]} Ng4+ {[%emt 0:00:05]} 29. Kf3 {[%emt 0:00:03]} Ne3 {[%emt 0:02:39]} 30. Ng3 {[%emt 0:01:54]} Nxc2 {[%emt 0:01:33]} 31. g6+ {[%emt 0:00:59]} Kf6 {[%emt 0:01:19]} 32. Rg1 {[%emt 0:00:34]} Nd4+ {[%emt 0:00:03]} 33. Kf2 {[%emt 0:00:04]} Rh4 {[%emt 0:00:04]} 34. Kg2 {[%emt 0:00:25]} Rg4 {[%emt 0:01:00]} 35. Kh3 {[%emt 0:00:09]} Rg5 {[%emt 0:00:04]} 36. Re1 {[%emt 0:01:01]} Nxf5 {[%emt 0:00:17]} 37. Nxf5 {[%emt 0:00:05]} Rxf5 {[%emt 0:00:04]} 38. Re8 {[%emt 0:00:32]} Kxg6 {[%emt 0:00:06]} 39. Ra8 {[%emt 0:00:07]} a6 {[%emt 0:00:06]} 40. Rb8 {[%emt 0:00:03]} Rf7 {[%emt 0:00:04]} 41. Kg4 {[%emt 0:30:04]} Rd7 {[%emt 0:30:38]} 42. Kf4 {[%emt 0:00:12]} d4 {[%emt 0:00:04]} 43. Re8 {[%emt 0:00:04]} d3 {[%emt 0:00:04]} 44. Re1 {[%emt 0:00:04]} d2 {[%emt 0:00:07]} 45. Rd1 {[%emt 0:00:04]} Kf6 {[%emt 0:00:03]} 46. Ke3 {[%emt 0:00:03]} g5 {[%emt 0:00:03]} 47. Rf1+ {[%emt 0:00:06]} Kg6 {[%emt 0:00:03]} 48. Rd1 {[%emt 0:00:02]} c5 {[%emt 0:00:07]} 49. b3 {[%emt 0:00:03]} b5 {[%emt 0:00:03]} 50. Ke2 {[%emt 0:00:04]} c4 {[%emt 0:00:37]} 51. bxc4 {[%emt 0:00:10]} bxc4 {[%emt 0:00:04]} 0-1

[Event "WYCC U14 Open 2019"]
[Site "Mumbai"]
[Date "2019.10.12"]
[Round "11.5"]
[White "Shah Jeet"]
[Black "Tsvetkov, Andrey"]
[Result "0-1"]
[ECO "B87"]
[WhiteElo "1844"]
[BlackElo "2382"]
[Annotator "ChessBase"]
[PlyCount "98"]
[EventDate "2019.10.02"]
[EventType "swiss"]
[EventCountry "IND"]
[SourceTitle "playchess.com"]
[Source "ChessBase"]
[SourceQuality "1"]
[TimeControl "40/5400+30:1800+30"]

1. e4 {[%emt 0:00:00]} c5 {[%emt 0:00:00]} 2. Nf3 {[%emt 0:00:00]} d6 {[%emt 0:00:00]} 3. d4 {[%emt 0:00:00]} cxd4 {[%emt 0:00:00]} 4. Nxd4 {[%emt 0:00:00]} Nf6 {[%emt 0:00:00]} 5. Nc3 {[%emt 0:00:13]} a6 {[%emt 0:00:00]} 6. Bc4 {[%emt 0:00:20]} e6 {[%emt 0:00:00]} 7. Bb3 {[%emt 0:00:07]} b5 {[%emt 0:00:00]} 8. Bg5 {[%emt 0:02:18]} Be7 {[%emt 0:00:14]} 9. Qf3 {[%emt 0:02:02]} Qc7 {[%emt 0:00:06]} 10. e5 {[%emt 0:01:37]} Bb7 {[%emt 0:00:05]} 11. exd6 {[%emt 0:00:05]} Bxd6 {[%emt 0:00:03]} 12. Qe3 {[%emt 0:00:08]} Bc5 {[%emt 0:00:02]} 13. O-O-O {[%emt 0:03:47]} Nc6 {[%emt 0:00:17]} 14. Qxe6+ {[%emt 0:07:50]} fxe6 {[%emt 0:00:04]} 15. Nxe6 {[%emt 0:00:06]} Qe7 {[%emt 0:00:01]} 16. Rhe1 {[%emt 0:00:18]} Qxe6 {[%emt 0:00:03]} 17. Rxe6+ {[%emt 0:00:37]} Ne7 {[%emt 0:00:03]} 18. Rde1 {[%emt 0:03:27]} O-O-O {[%emt 0:01:54]} 19. Bxf6 {[%emt 0:11:20]} gxf6 {[%emt 0:00:20]} 20. Ne4 {[%emt 0:00:12]} Bxe4 {[%emt 0:02:22]} 21. R1xe4 {[%emt 0:00:04]} f5 {[%emt 0:00:23]} 22. R4e5 {[%emt 0:17:49]} Bd6 {[%emt 0:00:11]} 23. Rxe7 {[%emt 0:04:03]} Bxe5 {[%emt 0:01:00]} 24. Rxe5 {[%emt 0:00:04]} Rhe8 {[%emt 0:00:03]} 25. Rxe8 {[%emt 0:10:45]} Rxe8 {[%emt 0:00:01]} 26. Kd2 {[%emt 0:00:18]} f4 {[%emt 0:00:29]} 27. c4 {[%emt 0:12:42]} b4 {[%emt 0:02:46]} 28. g3 {[%emt 0:03:03]} fxg3 {[%emt 0:01:17]} 29. hxg3 {[%emt 0:02:25]} Kc7 {[%emt 0:02:42]} 30. g4 {[%emt 0:04:46]} h6 {[%emt 0:02:10]} 31. Bc2 {[%emt 0:04:44]} Kd6 {[%emt 0:03:08]} 32. f4 {[%emt 0:04:45]} Kc5 {[%emt 0:26:11]} 33. f5 {[%emt 0:01:04]} Kd4 {[%emt 0:13:11]} 34. Bd3 {[%emt 0:01:29]} a5 {[%emt 0:00:25]} 35. b3 {[%emt 0:01:11]} Rd8 {[%emt 0:05:11]} 36. Ke2 {[%emt 0:00:34]} Ra8 37. Bb1 {[%emt 0:01:01]} Ra7 {[%emt 0:14:58]} 38. Kf3 {[%emt 0:00:46]} a4 {[%emt 0:11:48]} 39. Kf4 {[%emt 0:00:56]} a3 {[%emt 0:10:18]} 40. f6 {[%emt 0:01:28]} Kc3 {[%emt 0:01:16]} 41. Bf5 {[%emt 0:31:31]} Kb2 {[%emt 0:30:28]} 42. Ke5 {[%emt 0:00:00]} Kxa2 {[%emt 0:00:00]} 43. Kd6 {[%emt 0:00:00]} Kb2 {[%emt 0:00:00]} 44. Bd7 {[%emt 0:00:00]} Ra8 {[%emt 0:00:00]} 45. f7 {[%emt 0:00:00]} Rh8 {[%emt 0:00:00]} 46. Ke7 {[%emt 0:00:00]} a2 {[%emt 0:00:00]} 47. f8=Q {[%emt 0:00:00]} Rxf8 {[%emt 0:00:00]} 48. Kxf8 {[%emt 0:00:00]} a1=Q {[%emt 0:00:00]} 49. c5 {[%emt 0:00:00]} Kxb3 {[%emt 0:00:00]} 0-1

[Event "WYCC U14 Open 2019"]
[Site "Mumbai"]
[Date "2019.10.12"]
[Round "11.6"]
[White "Manish, Kumar"]
[Black "Murzin, Volodar"]
[Result "0-1"]
[ECO "A03"]
[WhiteElo "2132"]
[BlackElo "2433"]
[Annotator "RC"]
[PlyCount "120"]
[EventDate "2019.10.02"]
[EventType "swiss"]
[EventCountry "IND"]
[SourceTitle "playchess.com"]
[Source "ChessBase"]
[SourceQuality "1"]
[TimeControl "40/5400+30:1800+30"]

1. f4 {[%emt 0:00:00]} d5 {[%emt 0:03:46]} 2. Nf3 {[%emt 0:00:00]} c5 {[%emt 0:00:17]} 3. e3 {[%emt 0:00:00]} Nc6 {[%emt 0:01:18]} 4. b3 {[%emt 0:00:00]} Nf6 {[%emt 0:02:43]} 5. Bb2 {[%emt 0:00:36]} e6 {[%emt 0:02:40]} 6. Bb5 {[%emt 0:00:34]} Bd7 {[%emt 0:00:23]} 7. O-O {[%emt 0:00:18]} Be7 {[%emt 0:02:02]} 8. Bxc6 {[%emt 0:01:08]} Bxc6 {[%emt 0:00:02]} 9. Ne5 {[%emt 0:00:06]} Rc8 {[%emt 0:02:10]} 10. d3 {[%emt 0:00:22]} O-O {[%emt 0:04:50]} 11. Nd2 {[%emt 0:00:04]} Ne8 {[%emt 0:15:13]} 12. Qg4 {[%emt 0:02:23]} Bd7 {[%emt 0:04:21]} 13. Rf3 {[%emt 0:18:30]} f6 {[%emt 0:04:05]} 14. Nxd7 {[%emt 0:00:07]} Qxd7 {[%emt 0:00:19]} 15. Rh3 {[%emt 0:00:15]} Rf7 {[%emt 0:03:55]} 16. Qh4 {[%emt 0:04:46]} g6 {[%emt 0:01:05]} 17. g4 {[%emt 0:03:44]} d4 {[%emt 0:02:11]} 18. Qf2 {[%emt 0:08:53]} e5 {[%emt 0:06:27]} 19. f5 {[%emt 0:04:47]} gxf5 {[%emt 0:02:06]} 20. gxf5 {[%emt 0:00:09]} dxe3 {[%emt 0:00:05]} 21. Rxe3 {[%emt 0:01:26]} Nd6 {[%emt 0:01:31]} 22. Rf1 {[%emt 0:01:05]} Kh8 {[%emt 0:01:28]} 23. Kh1 {[%emt 0:03:33]} Rg8 {[%emt 0:00:59]} 24. Ne4 {[%emt 0:04:18]} Rfg7 {[%emt 0:05:19]} 25. Ng3 {[%emt 0:03:37]} Nf7 {[%emt 0:09:37]} 26. Ne4 {[%emt 0:04:16]} Nd6 {[%emt 0:06:13]} 27. Ng3 {[%emt 0:01:00]} Qc6+ {[%emt 0:00:14]} 28. Qf3 {[%emt 0:00:36]} Qxf3+ {[%emt 0:00:09]} 29. Rexf3 {[%emt 0:00:27]} Rg4 {[%emt 0:00:39]} 30. Re1 {[%emt 0:03:27]} Rc8 {[%emt 0:02:21]} 31. Nf1 {[%emt 0:02:27]} Kg8 {[%emt 0:02:12]} 32. Ne3 {[%emt 0:00:38]} Rg5 {[%emt 0:01:35]} 33. Rg3 {[%emt 0:06:55]} h6 {[%emt 0:01:13]} 34. Reg1 {[%emt 0:09:42]} Kf7 {[%emt 0:00:45]} 35. h4 {[%emt 0:00:17]} Rxg3 {[%emt 0:00:47]} 36. Rxg3 {[%emt 0:00:14]} h5 {[%emt 0:01:17]} 37. c4 {[%emt 0:05:33]} Bf8 {[%emt 0:00:50]} 38. Nd5 {[%emt 0:00:18]} Nxf5 {[%emt 0:02:10]} 39. Rf3 {[%emt 0:00:46]} Ke6 {[%emt 0:00:41]} 40. Bc3 {[%emt 0:04:15]} Bd6 {[%emt 0:00:43]} 41. Be1 {[%emt 0:30:59]} Rg8 {[%emt 0:30:29]} 42. Bf2 {[%emt 0:00:09]} Rg6 {[%emt 0:01:43]} 43. a3 {[%emt 0:01:06]} Nd4 {[%emt 0:05:08]} 44. Re3 {[%emt 0:00:39]} Rg4 {[%emt 0:01:18]} 45. b4 {[%emt 0:00:26]} b6 {[%emt 0:01:18]} 46. Kh2 {[%emt 0:01:39]} Nf5 {[%emt 0:01:44]} 47. Re4 {[%emt 0:00:35]} Ne7 {[%emt 0:00:00]} 48. bxc5 {[%emt 0:00:00]} bxc5 {[%emt 0:00:00]} 49. Nc3 {[%emt 0:00:00]} f5 {[%emt 0:00:00]} 50. Rxg4 {[%emt 0:00:00]} hxg4 {[%emt 0:00:00]} 51. Kg2 {[%emt 0:00:00]} Ng6 {[%emt 0:00:00]} 52. Nd5 {[%emt 0:00:00]} Nf4+ {[%emt 0:00:00]} 53. Nxf4+ {[%emt 0:00:00]} exf4 {[%emt 0:00:00]} 54. d4 {[%emt 0:00:00]} f3+ {[%emt 0:00:00]} 55. Kf1 {[%emt 0:00:00]} g3 {[%emt 0:00:00]} 56. dxc5 {[%emt 0:00:00]} Be5 {[%emt 0:00:00]} 57. h5 {[%emt 0:00:00]} gxf2 {[%emt 0:00:00]} 58. h6 {[%emt 0:00:00]} Kd7 {[%emt 0:00:00]} 59. Kxf2 {[%emt 0:00:00]} Kc6 {[%emt 0:00:00]} 60. Kxf3 {[%emt 0:00:00]} Kxc5 {[%emt 0:00:00]} 0-1

[Event "WYCC U14 Open 2019"]
[Site "Mumbai"]
[Date "2019.10.12"]
[Round "11.7"]
[White "Wu, Logan"]
[Black "Samant Aditya S"]
[Result "1/2-1/2"]
[ECO "B60"]
[WhiteElo "1994"]
[BlackElo "2334"]
[Annotator "ChessBase"]
[PlyCount "145"]
[EventDate "2019.10.02"]
[EventType "swiss"]
[EventCountry "IND"]
[SourceTitle "playchess.com"]
[Source "ChessBase"]
[SourceQuality "1"]
[TimeControl "40/5400+30:1800+30"]

1. e4 {[%emt 0:00:00]} c5 {[%emt 0:00:00]} 2. Nf3 {[%emt 0:00:00]} d6 {[%emt 0:00:00]} 3. d4 {[%emt 0:00:00]} cxd4 {[%emt 0:00:00]} 4. Nxd4 {[%emt 0:00:00]} Nf6 {[%emt 0:00:00]} 5. Nc3 {[%emt 0:00:00]} Nc6 {[%emt 0:00:00]} 6. Bg5 {[%emt 0:00:08]} Qb6 {[%emt 0:00:35]} 7. Ndb5 {[%emt 0:11:27]} a6 {[%emt 0:02:18]} 8. Bxf6 {[%emt 0:16:56]} gxf6 {[%emt 0:00:34]} 9. Nd5 {[%emt 0:03:40]} Qa5+ {[%emt 0:00:21]} 10. Nbc3 {[%emt 0:04:44]} f5 {[%emt 0:08:09]} 11. Bd3 {[%emt 0:04:53]} Bg7 {[%emt 0:16:09]} 12. exf5 {[%emt 0:03:52]} Bxc3+ {[%emt 0:00:39]} 13. Nxc3 {[%emt 0:00:05]} Bxf5 {[%emt 0:00:16]} 14. Bxf5 {[%emt 0:02:11]} Qxf5 {[%emt 0:00:55]} 15. Qd2 {[%emt 0:03:20]} Qe5+ {[%emt 0:07:08]} 16. Qe2 {[%emt 0:01:50]} Qxe2+ {[%emt 0:01:27]} 17. Kxe2 {[%emt 0:01:29]} O-O-O {[%emt 0:00:32]} 18. Rad1 {[%emt 0:03:59]} Rhg8 {[%emt 0:00:25]} 19. g3 {[%emt 0:01:02]} e6 {[%emt 0:01:18]} 20. Kd2 {[%emt 0:08:14]} d5 {[%emt 0:01:03]} 21. Kc1 {[%emt 0:00:54]} d4 {[%emt 0:09:09]} 22. Ne2 {[%emt 0:00:24]} e5 {[%emt 0:00:40]} 23. Rd2 {[%emt 0:01:08]} Rd7 {[%emt 0:03:04]} 24. Rhd1 {[%emt 0:00:34]} Rgd8 {[%emt 0:00:49]} 25. g4 {[%emt 0:03:13]} Rg8 {[%emt 0:09:23]} 26. h3 {[%emt 0:05:01]} h5 {[%emt 0:13:03]} 27. gxh5 {[%emt 0:10:11]} Rh8 {[%emt 0:06:03]} 28. c3 {[%emt 0:07:05]} Rxh5 {[%emt 0:04:10]} 29. cxd4 {[%emt 0:00:04]} Rxh3 {[%emt 0:06:05]} 30. dxe5 {[%emt 0:04:16]} Rxd2 {[%emt 0:00:20]} 31. Rxd2 {[%emt 0:00:05]} Nxe5 {[%emt 0:00:08]} 32. Kc2 {[%emt 0:00:58]} Rf3 {[%emt 0:00:49]} 33. Nd4 {[%emt 0:00:24]} Rf4 {[%emt 0:00:13]} 34. Kc3 {[%emt 0:01:43]} Ng4 {[%emt 0:01:07]} 35. f3 {[%emt 0:01:54]} Ne5 {[%emt 0:00:07]} 36. Rf2 {[%emt 0:00:16]} Kc7 {[%emt 0:02:47]} 37. b3 {[%emt 0:00:17]} b5 {[%emt 0:02:30]} 38. a3 {[%emt 0:01:04]} Kb6 {[%emt 0:00:27]} 39. b4 {[%emt 0:00:48]} Nc4 {[%emt 0:03:45]} 40. a4 {[%emt 0:01:12]} Ne5 {[%emt 0:02:40]} 41. axb5 {[%emt 0:03:26]} axb5 {[%emt 0:00:24]} 42. Rf1 {[%emt 0:01:48]} Nc6 {[%emt 0:00:48]} 43. Nxc6 {[%emt 0:04:22]} Kxc6 {[%emt 0:00:14]} 44. Rf2 {[%emt 0:00:04]} Rc4+ {[%emt 0:00:31]} 45. Kb3 {[%emt 0:00:05]} Kd5 {[%emt 0:00:28]} 46. Rd2+ {[%emt 0:00:46]} Rd4 {[%emt 0:00:17]} 47. Rc2 {[%emt 0:02:15]} Rd3+ {[%emt 0:01:15]} 48. Kb2 {[%emt 0:00:05]} Rxf3 {[%emt 0:00:06]} 49. Rc5+ {[%emt 0:00:13]} Kd4 {[%emt 0:00:05]} 50. Rxb5 {[%emt 0:00:13]} Kc4 {[%emt 0:01:23]} 51. Rb8 {[%emt 0:00:47]} f5 {[%emt 0:02:09]} 52. Kc2 {[%emt 0:00:17]} Rf2+ {[%emt 0:00:14]} 53. Kd1 {[%emt 0:00:06]} Kd3 {[%emt 0:00:21]} 54. Ke1 {[%emt 0:00:40]} Rb2 {[%emt 0:00:05]} 55. Kf1 {[%emt 0:01:09]} Ke3 {[%emt 0:00:41]} 56. Ra8 {[%emt 0:03:17]} Rxb4 {[%emt 0:00:34]} 57. Ra3+ {[%emt 0:00:08]} Ke4 {[%emt 0:00:07]} 58. Kf2 {[%emt 0:00:10]} Rb2+ {[%emt 0:00:04]} 59. Kf1 {[%emt 0:00:05]} f4 {[%emt 0:00:03]} 60. Rc3 {[%emt 0:00:16]} Kf5 {[%emt 0:00:05]} 61. Ra3 {[%emt 0:00:10]} Kg4 {[%emt 0:00:04]} 62. Rc3 {[%emt 0:00:05]} Ra2 {[%emt 0:00:02]} 63. Rb3 {[%emt 0:00:06]} Ra1+ {[%emt 0:00:16]} 64. Kf2 {[%emt 0:00:25]} Rh1 {[%emt 0:00:10]} 65. Kg2 {[%emt 0:00:09]} Rc1 {[%emt 0:00:03]} 66. Kf2 {[%emt 0:00:07]} Rc2+ {[%emt 0:00:20]} 67. Kf1 {[%emt 0:00:04]} Rc4 {[%emt 0:00:03]} 68. Kf2 {[%emt 0:00:08]} f3 {[%emt 0:00:05]} 69. Rb8 {[%emt 0:00:10]} Rc2+ {[%emt 0:00:06]} 70. Kf1 {[%emt 0:00:07]} Kg3 {[%emt 0:00:05]} 71. Rg8+ {[%emt 0:00:03]} Kf4 {[%emt 0:00:06]} 72. Rf8+ {[%emt 0:00:04]} Ke3 {[%emt 0:00:05]} 73. Re8+ {[%emt 0:00:03]} 1/2-1/2

[Event "WYCC U14 Open 2019"]
[Site "Mumbai"]
[Date "2019.10.12"]
[Round "11.8"]
[White "Petkov, Momchil"]
[Black "Dhrupad Kashyap"]
[Result "1-0"]
[ECO "B33"]
[WhiteElo "2333"]
[BlackElo "2000"]
[Annotator "ChessBase"]
[PlyCount "105"]
[EventDate "2019.10.02"]
[EventType "swiss"]
[EventCountry "IND"]
[SourceTitle "playchess.com"]
[Source "ChessBase"]
[SourceQuality "1"]
[TimeControl "40/5400+30:1800+30"]

1. e4 c5 {[%emt 0:00:03]} 2. Nf3 {[%emt 0:00:00]} Nc6 {[%emt 0:01:49]} 3. d4 {[%emt 0:00:37]} cxd4 {[%emt 0:00:06]} 4. Nxd4 {[%emt 0:00:05]} Nf6 {[%emt 0:00:22]} 5. Nc3 {[%emt 0:00:26]} g6 {[%emt 0:00:42]} 6. Nxc6 {[%emt 0:06:47]} bxc6 {[%emt 0:00:09]} 7. e5 {[%emt 0:00:05]} Nh5 {[%emt 0:00:53]} 8. Be2 {[%emt 0:05:02]} Ng7 {[%emt 0:00:09]} 9. O-O {[%emt 0:01:34]} Ne6 {[%emt 0:05:43]} 10. Be3 {[%emt 0:14:55]} Bg7 {[%emt 0:04:17]} 11. f4 {[%emt 0:01:27]} d5 {[%emt 0:03:11]} 12. Na4 {[%emt 0:10:28]} d4 {[%emt 0:05:55]} 13. Bd2 {[%emt 0:05:06]} c5 {[%emt 0:11:53]} 14. b3 {[%emt 0:03:49]} Bd7 {[%emt 0:10:08]} 15. Bc4 {[%emt 0:04:07]} Qc8 {[%emt 0:06:05]} 16. Nb2 {[%emt 0:02:32]} Nd8 {[%emt 0:06:09]} 17. Nd3 {[%emt 0:02:29]} O-O {[%emt 0:00:29]} 18. Qf3 {[%emt 0:15:30]} Bg4 {[%emt 0:07:31]} 19. Qd5 {[%emt 0:04:43]} Be6 {[%emt 0:00:30]} 20. Qxc5 {[%emt 0:02:41]} Qxc5 {[%emt 0:01:36]} 21. Nxc5 {[%emt 0:00:05]} Bxc4 {[%emt 0:00:18]} 22. bxc4 {[%emt 0:00:03]} Rc8 {[%emt 0:00:06]} 23. Bb4 {[%emt 0:00:39]} Nc6 {[%emt 0:01:04]} 24. Ba3 {[%emt 0:00:28]} Na5 {[%emt 0:00:09]} 25. Nb3 {[%emt 0:00:28]} Nxc4 {[%emt 0:02:41]} 26. Bxe7 {[%emt 0:00:07]} Rfe8 {[%emt 0:00:04]} 27. Bc5 {[%emt 0:02:34]} Nd2 {[%emt 0:00:50]} 28. Rfc1 {[%emt 0:01:45]} a5 {[%emt 0:07:46]} 29. Bxd4 {[%emt 0:01:21]} Nc4 {[%emt 0:00:12]} 30. Nc5 {[%emt 0:03:03]} f6 {[%emt 0:02:19]} 31. exf6 {[%emt 0:03:43]} Bxf6 {[%emt 0:00:05]} 32. Bxf6 {[%emt 0:01:59]} Rxc5 {[%emt 0:00:03]} 33. Re1 {[%emt 0:00:25]} Nd6 {[%emt 0:02:37]} 34. c3 {[%emt 0:00:59]} Rc4 {[%emt 0:03:13]} 35. Rxe8+ {[%emt 0:00:40]} Nxe8 {[%emt 0:00:02]} 36. Be5 {[%emt 0:01:15]} Kf7 {[%emt 0:00:06]} 37. Rb1 {[%emt 0:00:26]} Ra4 {[%emt 0:00:13]} 38. Rb2 {[%emt 0:00:11]} Ke6 {[%emt 0:00:14]} 39. g3 {[%emt 0:00:39]} Ra3 {[%emt 0:02:11]} 40. Kf2 {[%emt 0:00:49]} Kf5 {[%emt 0:00:44]} 41. Rb8 {[%emt 0:31:26]} g5 {[%emt 0:31:21]} 42. Rxe8 {[%emt 0:01:21]} Rxa2+ {[%emt 0:00:04]} 43. Ke3 {[%emt 0:00:57]} Rxh2 {[%emt 0:00:09]} 44. fxg5 {[%emt 0:00:19]} Rh1 {[%emt 0:00:28]} 45. Kd4 {[%emt 0:01:06]} Rd1+ {[%emt 0:00:19]} 46. Kc4 {[%emt 0:00:30]} Re1 {[%emt 0:00:19]} 47. Rf8+ {[%emt 0:00:37]} Kxg5 {[%emt 0:00:19]} 48. Kd5 {[%emt 0:02:24]} a4 {[%emt 0:00:19]} 49. Ra8 {[%emt 0:00:18]} Kf5 {[%emt 0:00:12]} 50. Bd4 {[%emt 0:00:00]} Ra1 {[%emt 0:00:00]} 51. c4 {[%emt 0:00:00]} Ra3 {[%emt 0:00:00]} 52. c5 {[%emt 0:00:00]} Rxg3 {[%emt 0:00:00]} 53. Rf8+ {[%emt 0:00:00]} 1-0

[Event "WYCC U14 Open 2019"]
[Site "Mumbai"]
[Date "2019.10.12"]
[Round "11.9"]
[White "Chyzy, Jakub"]
[Black "Madaminov, Mukhiddin"]
[Result "1-0"]
[ECO "C11"]
[WhiteElo "2327"]
[BlackElo "2045"]
[Annotator "ChessBase"]
[PlyCount "155"]
[EventDate "2019.10.02"]
[EventType "swiss"]
[EventCountry "IND"]
[SourceTitle "playchess.com"]
[Source "ChessBase"]
[SourceQuality "1"]
[TimeControl "40/5400+30:1800+30"]

1. e4 e6 2. d4 d5 3. Nc3 Nf6 4. e5 Nfd7 5. Nf3 c5 6. dxc5 Nc6 7. Bf4 Nxc5 8. Bd3 Be7 9. O-O O-O 10. Re1 a6 11. a3 b5 12. Ne2 Bb7 13. Ned4 Nxd4 14. Nxd4 Qb6 15. Be3 Qc7 16. f4 g6 17. c3 Nxd3 18. Qxd3 Qc4 19. Qd2 Bc8 20. Nc2 d4 21. Nxd4 Bb7 22. Qe2 Rfd8 23. Rad1 Rac8 24. Bf2 Qxe2 25. Nxe2 Rxd1 26. Rxd1 Bd5 27. Bd4 a5 28. Kf2 b4 29. axb4 axb4 30. Ra1 Rb8 31. Rc1 bxc3 32. Rxc3 Bb4 33. Rc7 Ra8 34. Nc3 Bxc3 35. Bxc3 Ra1 36. Bb4 h6 37. Be7 Ra2 38. Ba3 Ra1 39. Be7 Ra2 40. Rc2 Ra4 41. g3 Kh7 42. Bf6 Rb4 43. h4 g5 44. h5 Rb8 45. fxg5 hxg5 46. Bxg5 Rb4 47. Bf4 Rb3 48. h6 Be4 49. Re2 Bd5 50. Ke1 Kg6 51. Rh2 Kh7 52. Kd1 Be4 53. Rd2 Bd5 54. Kc1 Rf3 55. b4 Rf1+ 56. Kb2 Rf3 57. Kc1 Rf1+ 58. Kc2 Be4+ 59. Kc3 Rf3+ 60. Kd4 Bd5 61. Rb2 Ra3 62. b5 Ra8 63. Kc5 Rc8+ 64. Kd6 Rb8 65. b6 Rb7 66. Be3 Kg6 67. Rc2 Rb8 68. Kc7 Rb7+ 69. Kc8 Re7 70. Kd8 Rb7 71. Rc8 Be4 72. Rc4 Bf3 73. Kc8 Re7 74. Rd4 Bc6 75. Rd6 Bb5 76. b7 Re8+ 77. Rd8 Re7 78. Rg8+ 1-0

[Event "WYCC U14 Open 2019"]
[Site "Mumbai"]
[Date "2019.10.12"]
[Round "11.10"]
[White "Laux, Dominik"]
[Black "Pranav Vijay"]
[Result "0-1"]
[ECO "A45"]
[WhiteElo "2015"]
[BlackElo "2265"]
[Annotator "NA"]
[PlyCount "48"]
[EventDate "2019.10.02"]
[EventType "swiss"]
[EventCountry "IND"]
[SourceTitle "playchess.com"]
[Source "ChessBase"]
[SourceQuality "1"]
[TimeControl "40/5400+30:1800+30"]

1. d4 {[%emt 0:00:00]} Nf6 {[%emt 0:00:00]} 2. Bg5 {[%emt 0:00:25]} Ne4 {[%emt 0:00:00]} 3. Bf4 {[%emt 0:00:26]} c5 {[%emt 0:00:00]} 4. f3 {[%emt 0:00:18]} Qa5+ {[%emt 0:00:08]} 5. c3 {[%emt 0:00:20]} Nf6 {[%emt 0:00:09]} 6. d5 {[%emt 0:00:38]} Qb6 {[%emt 0:00:33]} 7. Bc1 {[%emt 0:01:09]} c4 {[%emt 0:08:04]} 8. e4 {[%emt 0:12:30]} e6 {[%emt 0:04:22]} 9. Bxc4 {[%emt 0:04:48]} Bc5 {[%emt 0:00:13]} 10. Ne2 {[%emt 0:02:33]} O-O {[%emt 0:01:46]} 11. Nd2 {[%emt 0:08:32]} Qc7 {[%emt 0:10:18]} 12. Bb3 {[%emt 0:05:56]} b5 {[%emt 0:01:37]} 13. dxe6 {[%emt 0:05:47]} dxe6 {[%emt 0:00:29]} 14. Nf1 {[%emt 0:01:19]} Qb6 {[%emt 0:04:11]} 15. Nfg3 {[%emt 0:01:33]} Rd8 {[%emt 0:01:20]} 16. Qc2 {[%emt 0:00:28]} Nc6 {[%emt 0:01:26]} 17. Bf4 {[%emt 0:04:52]} a5 {[%emt 0:04:17]} 18. e5 {[%emt 0:08:46]} Nd7 {[%emt 0:00:28]} 19. Qe4 {[%emt 0:03:26]} a4 {[%emt 0:00:41]} 20. Bc2 {[%emt 0:01:04]} f5 {[%emt 0:00:08]} 21. Nxf5 {[%emt 0:03:37]} exf5 {[%emt 0:00:08]} 22. Qxf5 {[%emt 0:01:12]} Nf6 {[%emt 0:00:36]} 23. Qg5 {[%emt 0:02:40]} Bf2+ {[%emt 0:00:11]} 24. Kf1 {[%emt 0:00:13]} h6 {[%emt 0:00:07]} 0-1

[Event "WYCC U14 Open 2019"]
[Site "Mumbai"]
[Date "2019.10.12"]
[Round "11.11"]
[White "Fardet, Elouan"]
[Black "Tadic, Stefan"]
[Result "0-1"]
[ECO "B33"]
[WhiteElo "2010"]
[BlackElo "2295"]
[Annotator "ChessBase"]
[PlyCount "46"]
[EventDate "2019.10.02"]
[EventType "swiss"]
[EventCountry "IND"]
[SourceTitle "playchess.com"]
[Source "ChessBase"]
[SourceQuality "1"]
[TimeControl "40/5400+30:1800+30"]

1. e4 {[%emt 0:00:00]} c5 {[%emt 0:00:00]} 2. Nf3 {[%emt 0:00:00]} Nc6 {[%emt 0:00:00]} 3. d4 {[%emt 0:00:00]} cxd4 {[%emt 0:00:00]} 4. Nxd4 {[%emt 0:00:00]} Nf6 {[%emt 0:00:00]} 5. Nc3 {[%emt 0:00:00]} e6 {[%emt 0:00:00]} 6. Ndb5 {[%emt 0:01:53]} Bc5 {[%emt 0:00:11]} 7. Nd6+ {[%emt 0:00:57]} Ke7 {[%emt 0:00:10]} 8. Bf4 {[%emt 0:00:39]} e5 {[%emt 0:00:05]} 9. Nf5+ {[%emt 0:00:28]} Kf8 {[%emt 0:00:05]} 10. Bg5 {[%emt 0:00:15]} d6 {[%emt 0:00:56]} 11. Bc4 {[%emt 0:01:49]} h6 {[%emt 0:07:52]} 12. Bxf6 {[%emt 0:09:31]} Qxf6 {[%emt 0:00:20]} 13. Nd5 {[%emt 0:05:39]} Qg6 {[%emt 0:18:07]} 14. Qf3 {[%emt 0:07:02]} h5 {[%emt 0:20:27]} 15. c3 {[%emt 0:06:22]} a6 {[%emt 0:16:14]} 16. b4 {[%emt 0:05:26]} Ba7 {[%emt 0:00:15]} 17. Nc7 {[%emt 0:02:12]} Rb8 {[%emt 0:00:21]} 18. Nxd6 {[%emt 0:00:35]} Nd8 {[%emt 0:00:12]} 19. Qd3 {[%emt 0:20:28]} Qxg2 {[%emt 0:06:40]} 20. O-O-O {[%emt 0:01:02]} Bg4 {[%emt 0:08:18]} 21. Rdf1 {[%emt 0:14:25]} Qf3 {[%emt 0:02:53]} 22. Qc2 {[%emt 0:13:51]} Rh6 {[%emt 0:01:04]} 23. Qd2 {[%emt 0:03:23]} Bb6 {[%emt 0:06:03]} 0-1